Workbook

Sheet Tipps
B1: Prozentrechnen | H1: EASY4ME

Sheet % formatieren
A1: Ein Prozent ist ein Hundertstel: 1% = 0,01
D3: formatiere als | I3: Beim Formatieren von Zellen wird die Überprüfung auf Richtigkeit nicht immer sofort durchgeführt! Klicke dann auf die Schaltfläche, um deine Eingaben zu überprüfen.
A4: Gib die angegebenen Werte ein: | D4: Prozent | F4: Dezimalzahl | M4: 1. Spalte | N4: 2. Spalte
C5: 16 Prozent | E5: =IF(AND(LEFT(CELL("format",D5),1)="P",$M5),CHAR(252),"") ->  | G5: =IF(AND(LEFT(CELL("format",F5),1)="S",$N5),CHAR(252),"") ->  | L5: 0.16 | M5: =L5=D5 -> FALSE | N5: =L5=F5 -> FALSE
C6: 2 Prozent | E6: =IF(AND(LEFT(CELL("format",D6),1)="P",$M6),CHAR(252),"") ->  | G6: =IF(AND(LEFT(CELL("format",F6),1)="S",$N6),CHAR(252),"") ->  | L6: 0.02 | M6: =L6=D6 -> FALSE | N6: =L6=F6 -> FALSE
C7: 50 Prozent | L7: 0.5 | M7: FALSE | N7: FALSE
C8: 100 Prozent | L8: 1 | M8: FALSE | N8: FALSE
C9: 78 Prozent | L9: 0.78 | M9: FALSE | N9: FALSE
D13: als Prozent
B14: 0.05 | C14: ist gleich viel wie | E14: =IF(AND(LEFT(CELL("format",D14),1)="P",$M14),CHAR(252),"") ->  | F14: Beispiel: Schreib 0,05 in die Zelle D14 und formatiere sie als Prozent! | M14: =B14=D14 -> FALSE
B15: 0.07 | C15: ist gleich viel wie | M15: =B15=D15 -> FALSE
B16: 0.12 | C16: ist gleich viel wie | M16: FALSE
B17: 0.62 | C17: ist gleich viel wie | M17: FALSE
B18: 1 | C18: ist gleich viel wie | M18: FALSE
B19: 1.2 | C19: ist gleich viel wie | M19: FALSE
D21: als Dezimalzahl | N21: Dezimalzahl? | O21: Standard?
B22: 0.02 | C22: ist gleich viel wie | D22: 0.02 | E22: =IF(P22=TRUE(),CHAR(252),"") ->  | M22: =D22=B22 -> TRUE | N22: =LEFT(CELL("format",$D22),1)="F" -> FALSE | O22: =LEFT(CELL("format",$D22),1)="S" -> FALSE | P22: =AND(OR(N22,O22),M22) -> FALSE
B23: 0.1 | C23: ist gleich viel wie | D23: 0.1 | E23: =IF(P23=TRUE(),CHAR(252),"") ->  | M23: =D23=B23 -> TRUE | N23: =LEFT(CELL("format",$D23),1)="F" -> FALSE | O23: =LEFT(CELL("format",$D23),1)="S" -> FALSE | P23: =AND(OR(N23,O23),M23) -> FALSE
B24: 0.22 | C24: ist gleich viel wie | D24: 0.22 | M24: TRUE | N24: FALSE | O24: FALSE | P24: FALSE
B25: 0.5 | C25: ist gleich viel wie | D25: 0.5 | M25: TRUE | N25: FALSE | O25: FALSE | P25: FALSE
B26: 2 | C26: ist gleich viel wie | D26: 2 | M26: TRUE | N26: FALSE | O26: FALSE | P26: FALSE
B27: 0.01 | C27: ist gleich viel wie | D27: 0.01 | M27: TRUE | N27: FALSE | O27: FALSE | P27: FALSE

Sheet Prozentanteil
A1: Berechne den Prozentanteil A!
A3: Prozentanteil berechnen
A4: 10% von 150 Euro sind: | L4: =150*10% -> 15
A5: 12% von 220 Euro sind: | L5: =220*0.12 -> 26.4
A6: 48% von 400 Euro sind: | L6: =400*0.48 -> 192
A7: 4% von 20 Euro sind: | L7: =20*0.04 -> 0.8
A8: 150% von 30 Euro sind: | L8: =30*1.5 -> 45
A9: 500% von 200 Euro sind: | L9: =200*5 -> 1000
A11: Eine Wohnung wird um 145.000 Euro verkauft. Der Makler verlangt 3,6% Provision. Wie viel erhält er?
C12: Die Provision beträgt: | L12: =145000*0.036 -> 5220
A15: Formel: Prozentanteil A = Grundwert G * Prozentsatz p
A18: Prozentsatz p | C18: Grundwert G | E18: Prozentanteil A
A19: 0.1 | B19: von | C19: 150 | D19: sind
A20: 0.18 | B20: von | C20: 22.5 | D20: sind
A21: 0.0275 | B21: von | C21: 1250 | D21: sind
A22: 0.03 | B22: von | C22: 120 | D22: sind
A23: 0.072 | B23: von | C23: 840 | D23: sind
A24: 1.12 | B24: von | C24: 50 | D24: sind
B26: Prozentsatz p
A27: Grundwert G | B27: 0.01 | C27: 0.15 | D27: 0.9 | E27: 1.2
A28: 100 | B28: 1 | C28: 15 | D28: 90 | E28: 120 | O28: =B$27*$A28 -> 1 | P28: =C$27*$A28 -> 15 | Q28: 90 | R28: 120
A29: 35 | O29: =B$27*$A29 -> 0.35 | P29: =C$27*$A29 -> 5.25 | Q29: =D$27*$A29 -> 31.5 | R29: =E$27*$A29 -> 42
A30: 45 | O30: 0.45 | P30: 6.75 | Q30: 40.5 | R30: 54
A31: 23 | O31: 0.23 | P31: 3.45 | Q31: 20.7 | R31: 27.6
A32: 45 | O32: 0.45 | P32: 6.75 | Q32: 40.5 | R32: 54
A33: 67 | O33: 0.67 | P33: 10.05 | Q33: 60.3 | R33: 80.4
A34: 125 | O34: 1.25 | P34: 18.75 | Q34: 112.5 | R34: 150

Sheet Prozentsatz
A1: Berechne den Prozentsatz!
A3: Prozentsatz berechnen | L3: Wert | M3: Formatierung
A4: 12 € von 60 € sind: | L4: =12/60 -> 0.2 | M4: =LEFT(CELL("format",C4),1)="P" -> FALSE | N4: =(L4=C4)*M4 -> 0
A5: 15 € von 60 € sind: | L5: =15/60 -> 0.25 | M5: =LEFT(CELL("format",C5),1)="P" -> FALSE | N5: =(L5=C5)*M5 -> 0
A6: 20 € von 60 € sind: | L6: =20/60 -> 0.3333333333 | M6: FALSE | N6: 0
A7: 30 € von 60 € sind: | L7: =30/60 -> 0.5 | M7: FALSE | N7: 0
A8: 60 € von 60 € sind: | L8: 1 | M8: FALSE | N8: 0
A9: 90 € von 60 € sind: | L9: 1.5 | M9: FALSE | N9: 0
A11: Prozentanteil | C11: Grundwert | E11: Prozentsatz
A12: 1 | B12: von | C12: 25 | D12: sind | L12: =A12/C12 -> 0.04 | M12: =LEFT(CELL("format",E12),1)="P" -> FALSE | N12: =(L12=E12)*M12 -> 0
A13: 1 | B13: von | C13: 50 | D13: sind | L13: 0.02 | M13: =LEFT(CELL("format",E13),1)="P" -> FALSE | N13: =(L13=E13)*M13 -> 0
A14: 1 | B14: von | C14: 200 | D14: sind | L14: 0.005 | M14: FALSE | N14: 0
A15: 1 | B15: von | C15: 0.4 | D15: sind | L15: 2.5 | M15: FALSE | N15: 0
A16: 5 | B16: von | C16: 12 | D16: sind | L16: 0.4166666667 | M16: FALSE | N16: 0
A17: 12 | B17: von | C17: 240 | D17: sind | L17: 0.05 | M17: FALSE | N17: 0
B21: Prozentanteil | C21: Grundwert | D21: Anteil in % (Prozentsatz) | K21: A | L21: G | M21: p | N21: Format P2
A22: 40 von 200 | B22: 40 | C22: 200 | D22: 0.2 | K22: 40 | L22: 200 | M22: =K22/L22 -> 0.2 | N22: =CELL("Format",D22)="P2" -> TRUE | O22: =(M22=D22)*N22 -> 1
A23: 20 von 120 | K23: 20 | L23: 120 | M23: =K23/L23 -> 0.1666666667 | N23: =CELL("Format",D23)="P2" -> FALSE | O23: =(M23=D23)*N23 -> 0
A24: 15 von 300 | K24: 15 | L24: 300 | M24: 0.05 | N24: FALSE | O24: 0
A25: 140 von 1000 | K25: 140 | L25: 1000 | M25: 0.14 | N25: FALSE | O25: 0
A26: 45 von 200 | K26: 45 | L26: 200 | M26: 0.225 | N26: FALSE | O26: 0
A27: 1200 von 178000 | K27: 1200 | L27: 178000 | M27: 0.006741573034 | N27: FALSE | O27: 0
A28: In einer Klasse sind 25 Kinder. 11 davon sind Mädchen. Wie viel Prozent sind das?
A29: Der Anteil von Mädchen ist: | L29: =11/25 -> 0.44 | M29: =LEFT(CELL("format",C29),1)="P" -> FALSE | N29: =(L29=C29)*M29 -> 0

Sheet MWST 1
A1: Berechne die Mehrwertsteuer!
A2: Bei dieser Aufgabe ist der Mehrwertsteuersatz in Prozent angegeben: Multipliziere den Nettopreis mit dem Mehrwertsteuersatz!
A3: Grundwert G | B3: Prozentsatz p | C3: Prozentanteil A
A4: Nettopreis (ohne MWST) | B4: Mehrwertsteuersatz in % | C4: Mehrwertsteuer (MWST)
A5: 2400 | B5: 0.1 | L5: =A5*B5 -> 240
A6: 120 | B6: 0.1 | L6: =A6*B6 -> 12
A7: 1460 | B7: 0.2 | L7: 292
A8: 17.9 | B8: 0.2 | L8: 3.58
A9: 12.3 | B9: 0.2 | L9: 2.46
A10: 15.5 | B10: 0.1 | L10: 1.55
A11: 14.4 | B11: 0.1 | L11: 1.44
A12: 1400 | B12: 0.2 | L12: 280

Sheet MWST 2
A1: Berechne die Mehrwertsteuer!
A2: Bei dieser Aufgabe ist der Mehrwertsteuersatz als ganze Zahl angegeben. Daher muss das Ergebnis nach der Multiplikation durch 100 dividiert werden.
A3: Grundwert G | B3: Prozentsatz p | C3: Prozentanteil A
A4: Nettopreis (ohne MWST) | B4: Mehrwertsteuersatz als Zahl | C4: Mehrwertsteuer (MWST)
A5: 3500 | B5: 10 | L5: =A5*B5/100 -> 350
A6: 258.5 | B6: 10 | L6: =A6*B6/100 -> 25.85
A7: 463 | B7: 20 | L7: 92.6
A8: 14.5 | B8: 20 | L8: 2.9
A9: 6.9 | B9: 20 | L9: 1.38
A10: 4.99 | B10: 10 | L10: 0.499
A11: 12.5 | B11: 10 | L11: 1.25
A12: 2560 | B12: 20 | L12: 512

Sheet MWST 3
A1: Berechne die Mehrwertsteuer!
A3: Grundwert G | B3: Prozentsatz p | C3: Prozentanteil A
A4: Nettopreis (ohne MWST) | B4: Mehrwertsteuersatz in % | C4: Mehrwertsteuer (MWST) | D4: Bruttopreis (Nettopreis + Mwst)
A5: 2400 | B5: 0.1 | L5: =A5*B5 -> 240 | M5: =A5+L5 -> 2640
A6: 120 | B6: 0.1 | L6: =A6*B6 -> 12 | M6: =A6+L6 -> 132
A7: 1460 | B7: 0.2 | L7: 292 | M7: 1752
A8: 17.9 | B8: 0.2 | L8: 3.58 | M8: 21.48
A9: 12.3 | B9: 0.2 | L9: 2.46 | M9: 14.76
A10: 15.5 | B10: 0.1 | L10: 1.55 | M10: 17.05
A11: 14.4 | B11: 0.1 | L11: 1.44 | M11: 15.84
A12: 1400 | B12: 0.2 | L12: 280 | M12: 1680
A14: Berechne die Mehrwertsteuer und den Bruttopreis!

Sheet Zinsen
A2: Zinsen berechnen
A3: Name | B3: Guthaben | C3: Zinssatz | D3: Zinsbetrag | E3: Guthaben neu
A4: Anhalt | B4: 12458 | C4: 0.025 | L4: =B4*C4 -> 311.45 | M4: =L4+B4 -> 12769.45
A5: Berndorfer | B5: 3455 | C5: 0.0125 | L5: =B5*C5 -> 43.1875 | M5: =L5+B5 -> 3498.1875
A6: Kringl | B6: 18346 | C6: 0.014 | L6: 256.844 | M6: 18602.844
A7: Landmann | B7: 2580 | C7: 0.012 | L7: 30.96 | M7: 2610.96
A8: Sterndorfer | B8: 3145 | C8: -0.0075 | L8: -23.5875 | M8: 3121.4125
A9: Zingel | B9: 28356 | C9: 0.011 | L9: 311.916 | M9: 28667.916
A12: Multipliziere das Guthaben mit den Zinsatz und du erhältst den Zinsbetrag!
A13: Zinsbetrag: Das sind die Zinsen die du pro Jahr erhältst!
A14: Guthaben neu: Das ist das Guthaben vom Vorjahr plus den Zinsbetrag!
